fUST/lending_fUST_20250707
["ID","MTS","AMOUNT","RATE_DAILY","PERIOD"]
[370090484,1751878268400,-584.79,0.00017962,2]
[370090485,1751878268410,-460.0,0.00017964,2]
[370090486,1751878268419,-460.0,0.00017964,2]
[370090487,1751878268428,-460.0,0.00017964,2]
[370090488,1751878268438,-460.0,0.00017964,2]
[370090489,1751878268447,-460.0,0.00017964,2]
[370090490,1751878268457,-407.40814488,0.00017964,2]
[370090491,1751878268466,-460.0,0.00017964,2]
[370090492,1751878268475,-460.0,0.00017964,2]
[370090493,1751878268611,-460.0,0.00017964,2]
[370090494,1751878268623,-460.0,0.00017964,2]
[370090495,1751878268632,-236.53928258,0.00017964,2]
[370090496,1751878268641,-460.0,0.00017964,2]
[370090497,1751878268651,-460.0,0.00017964,2]
[370090498,1751878268661,-460.0,0.00017964,2]
[370090499,1751878268673,-504.54,0.00017964,2]
[370090500,1751878268682,-460.0,0.00017964,2]
[370090501,1751878268692,-460.0,0.00017964,2]
[370090502,1751878268702,-326.43467925,0.00017964,2]
[370090503,1751878268711,-460.0,0.00017964,2]
[370090504,1751878268720,-460.0,0.00017964,2]
[370090505,1751878268729,-432.26606183,0.00017964,2]
[370090506,1751878268739,-460.0,0.00017964,2]
[370090507,1751878268748,-813.31,0.00017964,2]
[370090508,1751878268758,-460.0,0.00017964,2]
[370090509,1751878268768,-696.66,0.00017964,2]
[370090510,1751878268777,-460.0,0.00017964,2]
[370090511,1751878268786,-460.0,0.00017964,2]
[370090512,1751878268796,-460.0,0.00017964,2]
[370090513,1751878268806,-460.0,0.00017964,2]
[370090514,1751878268817,-460.0,0.00017964,2]
[370090515,1751878268827,-460.0,0.00017964,2]
[370090516,1751878268836,-460.0,0.00017964,2]
[370090517,1751878268845,-460.0,0.00017964,2]
[370090518,1751878268854,-460.0,0.00017964,2]
[370090519,1751878268864,-460.0,0.00017964,2]
[370090520,1751878268873,-460.0,0.00017964,2]
[370090521,1751878268882,-642.4,0.00017964,2]
[370090522,1751878268891,-989.64,0.00017964,2]
[370090523,1751878268901,-591.78,0.00017964,2]
[370090524,1751878268910,-460.0,0.00017964,2]
[370090525,1751878268919,-460.0,0.00017964,2]
[370090526,1751878268929,-460.0,0.00017964,2]
[370090527,1751878268938,-549.97,0.00017964,2]
[370090528,1751878268947,-460.0,0.00017964,2]
[370090529,1751878268956,-668.91,0.00017964,2]
[370090530,1751878268966,-460.0,0.00017964,2]
[370090531,1751878268977,-460.0,0.00017964,2]
[370090532,1751878268986,-1175.75,0.00017964,2]
[370090533,1751878268995,-460.0,0.00017964,2]
[370090534,1751878269004,-575.32,0.00017964,2]
[370090535,1751878269013,-501.04,0.00017964,2]
[370090536,1751878269023,-460.0,0.00017964,2]
[370090537,1751878269032,-460.0,0.00017964,2]
[370090538,1751878269041,-460.0,0.00017964,2]
[370090539,1751878269050,-460.0,0.00017964,2]
[370090540,1751878269060,-460.0,0.00017964,2]
[370090541,1751878269069,-460.0,0.00017964,2]
[370090542,1751878269078,-460.0,0.00017964,2]
[370090543,1751878269088,-1816.74,0.00017964,2]
[370090544,1751878269098,-369.32777085,0.00017964,2]
[370090545,1751878269107,-460.0,0.00017964,2]
[370090546,1751878269116,-460.0,0.00017964,2]
[370090547,1751878269125,-460.0,0.00017964,2]
[370090548,1751878269134,-627.71,0.00017964,2]
[370090549,1751878269144,-1190.73,0.00017964,2]
[370090550,1751878269153,-460.0,0.00017964,2]
[370090551,1751878269163,-1436.76,0.00017964,2]
[370090552,1751878269172,-460.0,0.00017964,2]
[370090553,1751878269181,-460.0,0.00017964,2]
[370090554,1751878269190,-744.3,0.00017964,2]
[370090555,1751878269200,-460.0,0.00017964,2]
[370090556,1751878269209,-598.62206074,0.00017965,2]
[370090557,1751878269220,-460.0,0.00017965,2]
[370090558,1751878269230,-460.0,0.00017965,2]
[370090559,1751878269239,-460.0,0.00017965,2]
[370090560,1751878269248,-460.0,0.00017965,2]
[370090561,1751878269258,-460.0,0.00017965,2]
[370090562,1751878269268,-460.0,0.00017965,2]
[370090563,1751878269277,-460.0,0.00017965,2]
[370090564,1751878269286,-460.0,0.00017965,2]
[370090565,1751878269295,-460.0,0.00017965,2]
[370090566,1751878269305,-1626.87,0.00017965,2]
[370090567,1751878269316,-1041.83,0.00017965,2]
[370090568,1751878269326,-460.0,0.00017965,2]
[370090569,1751878269336,-460.0,0.00017965,2]
[370090570,1751878269346,-1219.94,0.00017965,2]
[370090571,1751878269355,-11783.72,0.00017965,2]
[370090572,1751878269365,-516.28,0.00017965,2]
[370090573,1751878269375,-1126.4,0.00017965,2]
[370090574,1751878269389,-3083.89,0.00017965,2]
[370090575,1751878269398,-746.91,0.00017965,2]
[370090576,1751878269407,-460.0,0.00017965,2]
[370090577,1751878269417,-1051.67,0.00017965,2]
[370090578,1751878269427,-460.0,0.00017966,2]
[370090579,1751878269436,-460.0,0.00017966,2]
[370090580,1751878269445,-460.0,0.00017966,2]
[370090581,1751878269455,-460.0,0.00017966,2]
[370090582,1751878269464,-591.6,0.00017966,2]
[370090583,1751878269474,-566.95,0.00017966,2]
[370090584,1751878269483,-460.0,0.00017966,2]
[370090585,1751878269492,-460.0,0.00017966,2]
[370090586,1751878269502,-460.0,0.00017966,2]
[370090587,1751878269511,-460.0,0.00017966,2]
[370090588,1751878269521,-5589.31941783,0.00018,2]
[370090589,1751878269530,-16760.12900367,0.00018,2]
[370090590,1751878269541,-151.0,0.00018,2]
[370090591,1751878269551,-151.0,0.00018,2]
[370090592,1751878269560,-350.876114,0.00018017,2]
[370090593,1751878269571,-500.0,0.00018056,2]
[370090594,1751878269582,-460.0,0.00018064,2]
[370090595,1751878269593,-460.0,0.00018064,2]
[370090596,1751878269603,-1466.61,0.00018064,2]
[370090597,1751878269612,-1693.65,0.00018064,2]
[370090598,1751878269621,-460.0,0.00018064,2]
[370090599,1751878269631,-511.73,0.00018064,2]
[370090600,1751878269640,-5131.36,0.00018064,2]
[370090601,1751878269650,-460.0,0.00018064,2]
[370090602,1751878269659,-927.78,0.00018064,2]
[370090603,1751878269669,-460.0,0.00018064,2]
[370090604,1751878269680,-254.82232781,0.00018064,2]
[370090605,1751878269691,-2375.1,0.00018064,2]
[370090606,1751878269701,-4148.36,0.00018064,2]
[370090607,1751878269710,-460.0,0.00018064,2]
[370090608,1751878269719,-1006.41,0.00018064,2]
[370090609,1751878269731,-460.0,0.00018064,2]
[370090610,1751878269741,-9521.95,0.00018064,2]
[370090611,1751878269750,-2677.89,0.00018064,2]
[370090612,1751878269760,-927.92,0.00018064,2]
[370090613,1751878269770,-460.0,0.00018064,2]
[370090614,1751878269779,-460.0,0.00018065,2]
[370090615,1751878269789,-460.0,0.00018065,2]
[370090616,1751878269798,-460.0,0.00018065,2]
[370090617,1751878269808,-460.0,0.00018065,2]
[370090618,1751878269825,-460.0,0.00018065,2]
[370090619,1751878269835,-460.0,0.00018065,2]
[370090620,1751878269844,-652.73,0.00018065,2]
[370090621,1751878269853,-460.0,0.00018065,2]
[370090622,1751878269862,-460.0,0.00018065,2]
[370090623,1751878269877,-460.0,0.00018065,2]
[370090624,1751878269887,-460.0,0.00018065,2]
[370090625,1751878269896,-460.0,0.00018065,2]
[370090626,1751878269905,-173.78674107,0.00018065,2]
[370090627,1751878269915,-460.0,0.00018065,2]
[370090628,1751878269925,-460.0,0.00018065,2]
[370090629,1751878269934,-460.0,0.00018065,2]
[370090630,1751878269943,-460.0,0.00018065,2]
[370090631,1751878269953,-460.0,0.00018065,2]
[370090632,1751878269962,-460.0,0.00018065,2]
[370090633,1751878269971,-460.0,0.00018065,2]
[370090634,1751878269980,-460.0,0.00018065,2]
[370090635,1751878269990,-460.0,0.00018065,2]
[370090636,1751878269999,-460.0,0.00018065,2]
[370090637,1751878270009,-460.0,0.00018065,2]
[370090638,1751878270020,-460.0,0.00018065,2]
[370090639,1751878270030,-460.0,0.00018065,2]
[370090640,1751878270040,-460.0,0.00018065,2]
[370090641,1751878270050,-460.0,0.00018065,2]
[370090642,1751878270060,-460.0,0.00018065,2]
[370090643,1751878270070,-460.0,0.00018065,2]
[370090644,1751878270079,-460.0,0.00018065,2]
[370090645,1751878270091,-460.0,0.00018065,2]
[370090646,1751878270100,-402.76119151,0.00018065,2]
[370090647,1751878270110,-466.97063672,0.00018065,2]
[370090648,1751878270120,-460.0,0.00018065,2]
[370090649,1751878270129,-460.0,0.00018065,2]
[370090650,1751878270139,-460.0,0.00018065,2]
[370090651,1751878270148,-460.0,0.00018065,2]
[370090652,1751878270158,-460.0,0.00018065,2]
[370090653,1751878270168,-639.905489,0.00018065,2]
[370090654,1751878270177,-639.905489,0.00018065,2]
[370090655,1751878270187,-460.0,0.00018065,2]
[370090656,1751878270196,-460.0,0.00018065,2]
[370090657,1751878270206,-460.0,0.00018065,2]
[370090658,1751878270215,-460.0,0.00018065,2]
[370090659,1751878270226,-460.0,0.00018065,2]
[370090660,1751878270236,-460.0,0.00018065,2]
[370090661,1751878270245,-460.0,0.00018065,2]
[370090662,1751878270255,-460.0,0.00018065,2]
[370090663,1751878270265,-460.0,0.00018065,2]
[370090664,1751878270275,-590.05,0.00018065,2]
[370090665,1751878270284,-642.41,0.00018065,2]
[370090666,1751878270295,-460.0,0.00018065,2]
[370090667,1751878270304,-460.0,0.00018065,2]
[370090668,1751878270314,-460.0,0.00018065,2]
[370090669,1751878270324,-460.0,0.00018065,2]
[370090670,1751878270334,-1814.25,0.00018065,2]
[370090671,1751878270343,-460.0,0.00018065,2]
[370090672,1751878270353,-460.0,0.00018065,2]
[370090673,1751878270362,-780.98,0.00018065,2]
[370090674,1751878270372,-460.0,0.00018065,2]
[370090675,1751878270382,-460.0,0.00018065,2]
[370090676,1751878270391,-460.0,0.00018065,2]
[370090677,1751878270531,-462.2303714,0.00018065,2]
[370090678,1751878270542,-739.46,0.00018065,2]
[370090679,1751878270552,-460.0,0.00018065,2]
[370090680,1751878270561,-460.0,0.00018065,2]
[370090681,1751878270571,-460.0,0.00018065,2]
[370090682,1751878270581,-460.0,0.00018065,2]
[370090683,1751878270590,-460.0,0.00018065,2]
[370090684,1751878270599,-1473.58,0.00018065,2]
[370090685,1751878270609,-460.0,0.00018065,2]
[370090686,1751878270619,-460.0,0.00018065,2]
[370090687,1751878270629,-460.0,0.00018065,2]
[370090688,1751878270639,-460.0,0.00018065,2]
[370090689,1751878270648,-460.0,0.00018065,2]
[370090690,1751878270657,-556.7680337,0.00018065,2]
[370090691,1751878270667,-460.0,0.00018065,2]
[370090692,1751878270676,-460.0,0.00018065,2]
[370090693,1751878270686,-460.0,0.00018065,2]
[370090694,1751878270695,-460.0,0.00018065,2]
[370090695,1751878270705,-537.97,0.00018065,2]
[370090696,1751878270714,-460.0,0.00018065,2]
[370090697,1751878270724,-270.3331186,0.00018065,2]
[370090698,1751878270733,-460.0,0.00018065,2]
[370090699,1751878270742,-460.0,0.00018065,2]
[370090700,1751878270752,-514.48513942,0.00018065,2]
[370090701,1751878270761,-474.52,0.00018065,2]
[370090702,1751878270770,-460.0,0.00018065,2]
[370090703,1751878270780,-460.0,0.00018065,2]
[370090704,1751878270789,-460.0,0.00018065,2]
[370090705,1751878270799,-460.0,0.00018065,2]
[370090706,1751878270808,-463.45,0.00018065,2]
[370090707,1751878270821,-515.18,0.00018065,2]
[370090708,1751878270830,-569.19,0.00018065,2]
[370090709,1751878270840,-460.0,0.00018065,2]
[370090710,1751878270849,-216.0169514,0.00018065,2]
[370090711,1751878270858,-474.81,0.00018065,2]
[370090712,1751878270868,-590.63,0.00018065,2]
[370090713,1751878270877,-460.0,0.00018065,2]
[370090714,1751878270886,-517.21,0.00018065,2]
[370090715,1751878270896,-600.59,0.00018065,2]
[370090716,1751878270906,-460.0,0.00018065,2]
[370090717,1751878270915,-460.0,0.00018065,2]
[370090718,1751878270924,-460.0,0.00018065,2]
[370090719,1751878270933,-460.14,0.00018065,2]
[370090720,1751878270943,-460.0,0.00018065,2]
[370090721,1751878270952,-460.0,0.00018065,2]
[370090722,1751878270960,-460.0,0.00018065,2]
[370090723,1751878270969,-460.0,0.00018065,2]
[370090724,1751878270979,-503.25,0.00018065,2]
[370090725,1751878270988,-500.0,0.00018065,2]
[370090726,1751878270998,-1790.38,0.00018065,2]
[370090727,1751878271007,-500.0,0.00018065,2]
[370090728,1751878271016,-460.0,0.00018065,2]
[370090729,1751878271026,-1020.84,0.00018065,2]
[370090730,1751878271036,-460.0,0.00018065,2]
[370090731,1751878271045,-628.75,0.00018065,2]
[370090732,1751878271054,-724.26,0.00018065,2]
[370090733,1751878271063,-460.0,0.00018065,2]
[370090734,1751878271072,-599.29,0.00018065,2]
[370090735,1751878271081,-618.64,0.00018065,2]
[370090736,1751878271090,-460.0,0.00018065,2]
[370090737,1751878271100,-460.0,0.00018065,2]
[370090738,1751878271109,-460.0,0.00018065,2]
[370090739,1751878271119,-460.0,0.00018065,2]
[370090740,1751878271129,-736.7,0.00018065,2]
[370090741,1751878271139,-513.26,0.00018065,2]
[370090742,1751878271149,-2101.7,0.00018065,2]
[370090743,1751878271160,-701.27,0.00018065,2]
[370090744,1751878271171,-460.0,0.00018065,2]
[370090745,1751878271182,-501.61,0.00018065,2]
[370090746,1751878271192,-621.18,0.00018065,2]
[370090747,1751878271202,-460.0,0.00018065,2]
[370090748,1751878271213,-460.0,0.00018065,2]
[370090749,1751878271224,-460.0,0.00018065,2]
[370090750,1751878271233,-460.0,0.00018065,2]
[370090751,1751878271243,-460.0,0.00018065,2]
[370090752,1751878271254,-460.0,0.00018065,2]
[370090753,1751878271264,-460.0,0.00018065,2]
[370090754,1751878271275,-1588.08,0.00018065,2]
[370090755,1751878271286,-460.0,0.00018065,2]
[370090756,1751878271295,-261.0898832,0.00018065,2]
[370090757,1751878271306,-1502.2,0.00018065,2]
[370090758,1751878271316,-460.0,0.00018065,2]
[370090759,1751878271325,-603.3,0.00018065,2]
[370090760,1751878271336,-645.22,0.00018065,2]
[370090761,1751878271346,-460.0,0.00018065,2]
[370090762,1751878271357,-460.0,0.00018065,2]
[370090763,1751878271366,-460.0,0.00018065,2]
[370090764,1751878271376,-460.0,0.00018065,2]
[370090765,1751878271386,-460.0,0.00018065,2]
[370090766,1751878271396,-460.0,0.00018065,2]
[370090767,1751878271406,-460.0,0.00018065,2]
[370090768,1751878271415,-802.16,0.00018065,2]
[370090769,1751878271426,-460.0,0.00018065,2]
[370090770,1751878271436,-582.95,0.00018065,2]
[370090771,1751878271446,-460.0,0.00018065,2]
[370090772,1751878271455,-518.66,0.00018065,2]
[370090773,1751878271465,-461.06,0.00018065,2]
[370090774,1751878271475,-460.0,0.00018065,2]
[370090775,1751878271485,-882.2,0.00018065,2]
[370090776,1751878271495,-460.0,0.00018065,2]
[370090777,1751878271504,-460.0,0.00018065,2]
[370090778,1751878271515,-460.0,0.00018065,2]
[370090779,1751878271525,-466.33,0.00018065,2]
[370090780,1751878271535,-460.0,0.00018065,2]
[370090781,1751878271544,-461.79147146,0.00018065,2]
[370090782,1751878271554,-811.29,0.00018065,2]
[370090783,1751878271564,-460.0,0.00018065,2]
[370090784,1751878271574,-151.0,0.00018065,2]
[370090785,1751878271583,-460.0,0.00018067,2]
[370090786,1751878271592,-460.0,0.00018067,2]
[370090787,1751878271601,-460.0,0.00018067,2]
[370090788,1751878271610,-460.0,0.00018067,2]
[370090789,1751878271619,-575.59,0.00018067,2]
[370090790,1751878271629,-460.0,0.00018067,2]
[370090791,1751878271638,-460.0,0.00018067,2]
[370090792,1751878271647,-460.0,0.00018067,2]
[370090793,1751878271657,-460.0,0.00018067,2]
[370090794,1751878271666,-460.0,0.00018067,2]
[370090795,1751878271675,-460.0,0.00018067,2]
[370090796,1751878271684,-460.0,0.00018068,2]
[370090797,1751878271694,-460.0,0.00018068,2]
[370090798,1751878271703,-460.0,0.00018069,2]
[370090799,1751878271714,-460.0,0.00018069,2]
[370090800,1751878271726,-460.0,0.00018069,2]
[370090801,1751878271737,-254.60910511,0.00018069,2]
[370090802,1751878271746,-460.0,0.00018069,2]
[370090803,1751878271756,-460.0,0.00018069,2]
[370090804,1751878271765,-460.0,0.00018069,2]
[370090805,1751878271775,-204.98472858,0.0001807,2]
[370090806,1751878271784,-460.0,0.0001807,2]
[370090807,1751878271794,-460.0,0.0001807,2]
[370090808,1751878271803,-460.0,0.0001807,2]
[370090809,1751878271813,-1820.82,0.0001807,2]
[370090810,1751878271825,-460.0,0.0001807,2]
[370090811,1751878271834,-460.0,0.0001807,2]
[370090812,1751878271843,-460.0,0.0001807,2]
[370090813,1751878271852,-460.0,0.0001807,2]
[370090814,1751878271863,-697.17,0.0001807,2]
[370090815,1751878271872,-460.0,0.0001807,2]
[370090816,1751878271881,-460.0,0.0001807,2]
[370090817,1751878271891,-584.48,0.0001807,2]
[370090818,1751878271901,-686.19,0.0001807,2]
[370090819,1751878271912,-460.0,0.0001807,2]
[370090820,1751878271921,-460.0,0.0001807,2]
[370090821,1751878271930,-460.0,0.0001807,2]
[370090822,1751878271939,-460.0,0.0001807,2]
[370090823,1751878271949,-891.26,0.0001807,2]
[370090824,1751878271958,-460.0,0.0001807,2]
[370090825,1751878271967,-460.0,0.0001807,2]
[370090826,1751878271976,-597.07,0.0001807,2]
[370090827,1751878271985,-460.0,0.0001807,2]
[370090828,1751878271995,-511.02,0.0001807,2]
[370090829,1751878272005,-461.69,0.0001807,2]
[370090830,1751878272015,-460.0,0.0001807,2]
[370090831,1751878272024,-460.0,0.0001807,2]
[370090832,1751878272033,-460.0,0.0001807,2]
[370090833,1751878272044,-460.0,0.0001807,2]
[370090834,1751878272053,-460.0,0.0001807,2]
[370090835,1751878272064,-460.0,0.0001807,2]
[370090836,1751878272074,-151.0,0.00018071,2]
[370090837,1751878272084,-267.748146,0.00018071,2]
[370090838,1751878272094,-460.0,0.00018071,2]
[370090839,1751878272103,-460.0,0.00018071,2]
[370090840,1751878272113,-151.0,0.00018071,2]
[370090841,1751878272122,-151.0,0.00018071,2]
[370090842,1751878272132,-460.0,0.00018071,2]
[370090843,1751878272141,-460.0,0.00018071,2]
[370090844,1751878272151,-460.0,0.00018071,2]
[370090845,1751878272161,-460.0,0.00018071,2]
[370090846,1751878272171,-460.0,0.00018071,2]
[370090847,1751878272301,-579.14,0.00018071,2]
[370090848,1751878272311,-151.0,0.00018071,2]
[370090849,1751878272320,-151.0,0.00018071,2]
[370090850,1751878272330,-251.765691,0.00018071,2]
[370090851,1751878272340,-251.765691,0.00018071,2]
[370090852,1751878272349,-249.097854,0.00018071,2]
[370090853,1751878272359,-1152.046431,0.00018071,2]
[370090854,1751878272368,-151.0,0.00018071,2]
[370090855,1751878272378,-320.333785,0.00018071,2]
[370090856,1751878272387,-320.333785,0.00018071,2]
[370090857,1751878272397,-151.0,0.00018071,2]
[370090858,1751878272407,-151.0,0.00018071,2]
[370090859,1751878272417,-160.955765,0.00018071,2]
[370090860,1751878272426,-160.955765,0.00018071,2]
[370090861,1751878272436,-1240.905189,0.00018071,2]
[370090862,1751878272446,-1240.905189,0.00018071,2]
[370090863,1751878272455,-350.876114,0.000181,2]
[370090864,1751878272465,-500.0,0.00018121,2]
[370090865,1751878272475,-1000.0,0.00018121,2]
[370090866,1751878272484,-1000.0,0.00018121,2]
[370090867,1751878272494,-1000.0,0.00018121,2]
[370090868,1751878272504,-420.0,0.00018121,2]
[370090869,1751878272513,-500.0,0.00018139,2]
[370090870,1751878272523,-151.456877,0.00018141,2]
[370090871,1751878272532,-151.0,0.00018141,2]
[370090872,1751878272541,-174.567543,0.00018141,2]
[370090873,1751878272551,-174.567543,0.00018141,2]
[370090874,1751878272561,-1680.07552712,0.00018141,2]
[370090875,1751878272570,-503.491747,0.00018171,2]
[370090876,1751878272580,-503.491747,0.00018171,2]
[370090877,1751878272589,-151.0,0.00018171,2]
[370090878,1751878272599,-151.0,0.00018171,2]
[370090879,1751878272609,-151.0,0.00018171,2]
[370090880,1751878272618,-151.0,0.00018171,2]
[370090881,1751878272628,-151.0,0.00018171,2]
[370090882,1751878272637,-234.572647,0.00018171,2]
[370090883,1751878272646,-234.572647,0.00018171,2]
[370090884,1751878272656,-151.0,0.00018171,2]
[370090885,1751878272665,-185.862515,0.00018171,2]
[370090886,1751878272674,-185.862515,0.00018171,2]
[370090887,1751878272684,-151.0,0.00018171,2]
[370090888,1751878272693,-151.0,0.00018171,2]
[370090889,1751878272702,-151.0,0.00018171,2]
[370090890,1751878272711,-151.0,0.00018171,2]
[370090891,1751878272721,-302.740728,0.00018171,2]
[370090892,1751878272730,-302.740728,0.00018171,2]
[370090893,1751878272739,-535.243736,0.00018171,2]
[370090894,1751878272749,-535.243736,0.00018171,2]
[370090895,1751878272759,-151.0,0.00018171,2]
[370090896,1751878272768,-211.885957,0.00018171,2]
[370090897,1751878272778,-211.885957,0.00018171,2]
[370090898,1751878272787,-203.424781,0.00018171,2]
[370090899,1751878272797,-203.424781,0.00018171,2]
[370090900,1751878272806,-3702.021644,0.00018171,2]
[370090901,1751878272818,-3702.021644,0.00018171,2]
[370090902,1751878272828,-153.071503,0.00018171,2]
[370090903,1751878272839,-151.0,0.00018171,2]
[370090904,1751878272849,-151.0,0.00018171,2]
[370090905,1751878272858,-166.455343,0.00018171,2]
[370090906,1751878272868,-166.455343,0.00018171,2]
[370090907,1751878272877,-151.0,0.00018171,2]
[370090908,1751878272887,-350.876114,0.00018182,2]
[370090909,1751878272896,-1680.0,0.00018212,2]
[370090910,1751878272906,-7880.90807545,0.00018215,2]
[370090911,1751878272915,-500.0,0.00018221,2]
[370090912,1751878272925,-475.24,0.0001823,2]
[370090913,1751878272934,-460.0,0.0001823,2]
[370090914,1751878272944,-634.64,0.0001823,2]
[370090915,1751878272953,-460.0,0.0001823,2]
[370090916,1751878272963,-460.0,0.0001823,2]
[370090917,1751878272973,-578.27,0.0001823,2]
[370090918,1751878272983,-714.52,0.0001823,2]
[370090919,1751878272992,-3372.58,0.0001823,2]
[370090920,1751878273001,-460.0,0.0001823,2]
[370090921,1751878273010,-460.0,0.0001823,2]
[370090922,1751878273020,-213.20756992,0.0001823,2]
[370090923,1751878273030,-460.0,0.0001823,2]
[370090924,1751878273039,-557.47,0.0001823,2]
[370090925,1751878273058,-460.0,0.0001823,2]
[370090926,1751878273074,-476.15,0.0001823,2]
[370090927,1751878273094,-360.66173995,0.00018234,2]
[370090928,1751878273113,-460.0,0.00018234,2]
[370090929,1751878273131,-460.0,0.00018234,2]
[370090930,1751878273148,-460.0,0.00018234,2]
[370090931,1751878273166,-460.0,0.00018234,2]
[370090932,1751878273181,-460.0,0.00018234,2]
[370090933,1751878273198,-460.0,0.00018234,2]
[370090934,1751878273236,-460.0,0.00018234,2]
[370090935,1751878273263,-460.0,0.00018234,2]
[370090936,1751878273280,-460.0,0.00018234,2]
[370090937,1751878273303,-460.0,0.00018234,2]
[370090938,1751878273324,-460.0,0.00018234,2]
[370090939,1751878273343,-161.13354208,0.00018234,2]
[370090940,1751878273365,-460.0,0.00018234,2]
[370090941,1751878273387,-5018.54,0.00018234,2]
[370090942,1751878273409,-460.0,0.00018234,2]
[370090943,1751878273431,-460.0,0.00018234,2]
[370090944,1751878273450,-473.43,0.00018234,2]
[370090945,1751878273469,-317.79427988,0.00018234,2]
[370090946,1751878273488,-978.43,0.00018234,2]
[370090947,1751878273505,-877.49,0.00018234,2]
[370090948,1751878273524,-460.0,0.00018234,2]
[370090949,1751878273540,-460.0,0.00018234,2]
[370090950,1751878273556,-460.0,0.00018234,2]
[370090951,1751878273573,-460.0,0.00018234,2]
[370090952,1751878273589,-460.0,0.00018234,2]
[370090953,1751878273605,-460.0,0.00018234,2]
[370090954,1751878273622,-4865.84,0.00018234,2]
[370090955,1751878273638,-460.0,0.00018234,2]
[370090956,1751878273657,-8429.87,0.00018234,2]
[370090957,1751878273672,-1078.12,0.00018234,2]
[370090958,1751878273689,-460.0,0.00018234,2]
[370090959,1751878273705,-460.0,0.00018234,2]
[370090960,1751878273721,-460.0,0.00018234,2]
[370090961,1751878273737,-460.0,0.00018234,2]
[370090962,1751878273753,-460.0,0.00018234,2]
[370090963,1751878273767,-814.88,0.00018234,2]
[370090964,1751878273783,-1523.08,0.00018234,2]
[370090965,1751878273799,-460.0,0.00018234,2]
[370090966,1751878273814,-758.47,0.00018235,2]
[370090967,1751878273832,-460.0,0.00018235,2]
[370090968,1751878273848,-460.0,0.00018235,2]
[370090969,1751878273864,-460.0,0.00018235,2]
[370090970,1751878273881,-460.0,0.00018235,2]
[370090971,1751878273898,-648.63,0.00018235,2]
[370090972,1751878273914,-4741.33,0.00018235,2]
[370090973,1751878273930,-815.67,0.00018235,2]
[370090974,1751878273946,-4342.85,0.00018235,2]
[370090975,1751878273962,-460.0,0.00018235,2]
[370090976,1751878273976,-460.0,0.00018235,2]
[370090977,1751878273993,-460.0,0.00018235,2]
[370090978,1751878274009,-1322.28,0.00018235,2]
[370090979,1751878274024,-460.0,0.00018236,2]
[370090980,1751878274040,-604.22616249,0.00018236,2]
[370090981,1751878274058,-612.32,0.00018236,2]
[370090982,1751878274074,-586.81,0.00018236,2]
[370090983,1751878274089,-460.0,0.00018236,2]